fUST/lending_fUST_20240611
["ID","MTS","AMOUNT","RATE_DAILY","PERIOD"]
[328991625,1718045449640,-500.0,0.00019726,2]
[328991626,1718045449653,-500.0,0.00019726,2]
[328991627,1718045449664,-6299.95,0.00019726,2]
[328991628,1718045449675,-500.0,0.00019726,2]
[328991629,1718045449686,-500.0,0.00019726,2]
[328991630,1718045449698,-500.0,0.00019726,2]
[328991631,1718045449709,-1604.21,0.00019726,2]
[328991632,1718045449720,-233.99007782,0.00019726,2]
[328991633,1718045449732,-500.0,0.00019726,2]
[328991634,1718045449743,-500.0,0.00019726,2]
[328991635,1718045449754,-403.79208584,0.00019726,2]
[328991636,1718045449764,-500.0,0.00019726,2]
[328991637,1718045449776,-1169.0,0.00019726,2]
[328991638,1718045449787,-500.0,0.00019726,2]
[328991639,1718045449801,-500.0,0.00019726,2]
[328991640,1718045449813,-775.44,0.00019726,2]
[328991641,1718045449825,-500.0,0.00019726,2]
[328991642,1718045449836,-500.0,0.00019726,2]
[328991643,1718045449847,-500.0,0.00019726,2]
[328991644,1718045449858,-500.0,0.00019726,2]
[328991645,1718045449870,-500.0,0.00019726,2]
[328991646,1718045449882,-500.0,0.00019726,2]
[328991647,1718045449893,-500.0,0.00019726,2]
[328991648,1718045449906,-500.0,0.00019726,2]
[328991649,1718045449918,-500.0,0.00019726,2]
[328991650,1718045449929,-500.0,0.00019726,2]
[328991651,1718045449941,-500.0,0.00019726,2]
[328991652,1718045449953,-500.0,0.00019726,2]
[328991653,1718045449965,-500.0,0.00019726,2]
[328991654,1718045449976,-500.0,0.00019726,2]
[328991655,1718045449988,-500.0,0.00019726,2]
[328991656,1718045450000,-500.0,0.00019726,2]
[328991657,1718045450012,-500.0,0.00019726,2]
[328991658,1718045450024,-828.78,0.00019726,2]
[328991659,1718045450035,-536.28,0.00019726,2]
[328991660,1718045450046,-2628.33,0.00019726,2]
[328991661,1718045450056,-500.0,0.00019726,2]
[328991662,1718045450067,-500.0,0.00019726,2]
[328991663,1718045450077,-1042.57,0.00019726,2]
[328991664,1718045450087,-500.0,0.00019726,2]
[328991665,1718045450097,-500.0,0.00019726,2]
[328991666,1718045450107,-500.0,0.00019726,2]
[328991667,1718045450117,-500.0,0.00019726,2]
[328991668,1718045450127,-500.0,0.00019726,2]
[328991669,1718045450137,-1048.97,0.00019726,2]
[328991670,1718045450147,-500.0,0.00019726,2]
[328991671,1718045450158,-500.0,0.00019726,2]
[328991672,1718045450168,-500.0,0.00019726,2]
[328991673,1718045450179,-500.0,0.00019726,2]
[328991674,1718045450188,-500.0,0.00019726,2]
[328991675,1718045450347,-500.0,0.00019726,2]
[328991676,1718045450363,-500.0,0.00019726,2]
[328991677,1718045450374,-500.0,0.00019726,2]
[328991678,1718045450384,-876.45,0.00019726,2]
[328991679,1718045450394,-500.0,0.00019726,2]
[328991680,1718045450406,-644.82,0.00019726,2]
[328991681,1718045450415,-500.0,0.00019726,2]
[328991682,1718045450425,-500.0,0.00019726,2]
[328991683,1718045450435,-500.0,0.00019726,2]
[328991684,1718045450445,-526.51,0.00019726,2]
[328991685,1718045450455,-2385.2,0.00019726,2]
[328991686,1718045450465,-500.0,0.00019726,2]
[328991687,1718045450476,-545.34681441,0.00019726,2]
[328991688,1718045450486,-500.0,0.00019726,2]
[328991689,1718045450496,-420.0,0.00019797,2]
[328991690,1718045450506,-672.01,0.00019998,2]
[328991691,1718045450516,-672.01,0.00019999,2]
[328991692,1718045450527,-529.009361,0.0002,4]
[328991693,1718045450537,-3600.00965524,0.0002,2]
[328991694,1718045450547,-1115.98840214,0.0002,2]
[328991695,1718045450557,-500.0,0.0002,2]
[328991696,1718045450567,-500.0,0.0002,2]
[328991697,1718045450578,-500.0,0.0002,2]
[328991698,1718045450588,-29257.23152836,0.0002,2]
[328991699,1718045450598,-500.0,0.0002,2]
[328991700,1718045450608,-554.32114719,0.0002,2]
[328991701,1718045450619,-1000.0,0.0002,8]
[328991702,1718045450629,-500.0,0.0002,2]
[328991703,1718045450639,-500.0,0.0002,2]
[328991704,1718045450649,-500.0,0.0002,2]
[328991705,1718045450660,-500.0,0.0002,2]
[328991706,1718045450670,-500.0,0.0002,2]
[328991707,1718045450680,-496.62831701,0.0002,2]
[328991708,1718045450690,-291.47323671,0.0002,2]
[328991709,1718045450699,-500.0,0.0002,2]
[328991710,1718045450709,-500.0,0.0002,2]
[328991711,1718045450719,-500.0,0.0002,2]
[328991712,1718045450728,-500.0,0.0002,2]
[328991713,1718045450738,-500.0,0.0002,2]
[328991714,1718045450749,-500.0,0.0002,2]
[328991715,1718045450758,-500.0,0.0002,4]
[328991716,1718045450768,-500.0,0.0002,2]
[328991717,1718045450779,-500.0,0.0002,2]
[328991718,1718045450789,-500.0,0.0002,2]
[328991719,1718045450802,-500.0,0.0002,2]
[328991720,1718045450812,-500.0,0.0002,2]
[328991721,1718045450822,-500.0,0.0002,2]
[328991722,1718045450833,-500.0,0.0002,2]
[328991723,1718045450843,-500.0,0.0002,2]
[328991724,1718045450853,-500.0,0.0002,2]
[328991725,1718045450864,-500.0,0.0002,2]
[328991726,1718045450874,-326.5893206,0.0002,2]
[328991727,1718045450884,-500.0,0.0002,2]
[328991728,1718045450895,-500.0,0.0002,2]
[328991729,1718045450906,-500.0,0.0002,2]
[328991730,1718045450916,-500.0,0.0002,2]
[328991731,1718045450926,-500.0,0.0002,2]
[328991732,1718045450936,-500.0,0.0002,2]
[328991733,1718045450945,-500.0,0.0002,2]
[328991734,1718045450956,-500.0,0.0002,2]
[328991735,1718045450966,-500.0,0.0002,2]
[328991736,1718045450976,-632.75403515,0.0002,2]
[328991737,1718045450986,-534.44,0.0002,2]
[328991738,1718045450996,-500.0,0.0002,2]
[328991739,1718045451006,-423.06029683,0.0002,2]
[328991740,1718045451016,-500.0,0.0002,2]
[328991741,1718045451026,-568.58636818,0.0002,2]
[328991742,1718045451035,-500.0,0.0002,2]
[328991743,1718045451046,-500.0,0.0002,2]
[328991744,1718045451056,-929.55,0.0002,2]
[328991745,1718045451066,-268.5794634,0.0002,2]
[328991746,1718045451076,-500.0,0.0002,2]
[328991747,1718045451085,-500.0,0.0002,2]
[328991748,1718045451095,-500.0,0.0002,2]
[328991749,1718045451105,-504.09,0.0002,2]
[328991750,1718045451115,-500.0,0.0002,2]
[328991751,1718045451125,-500.0,0.0002,2]
[328991752,1718045451134,-500.0,0.0002,2]
[328991753,1718045451144,-556.97,0.0002,2]
[328991754,1718045451155,-1879.25,0.0002,2]
[328991755,1718045451165,-552.24988696,0.0002,2]
[328991756,1718045451175,-500.0,0.0002,2]
[328991757,1718045451184,-500.0,0.0002,2]
[328991758,1718045451194,-500.0,0.0002,2]
[328991759,1718045451204,-500.0,0.0002,2]
[328991760,1718045451214,-6299.95,0.0002,2]
[328991761,1718045451224,-500.0,0.0002,2]
[328991762,1718045451234,-500.0,0.0002,2]
[328991763,1718045451244,-500.0,0.0002,2]
[328991764,1718045451254,-1604.21,0.0002,2]
[328991765,1718045451264,-370.43653213,0.0002,2]
[328991766,1718045451274,-1169.0,0.0002,2]
[328991767,1718045451285,-500.0,0.0002,2]
[328991768,1718045451298,-500.0,0.0002,2]
[328991769,1718045451308,-775.44,0.0002,2]
[328991770,1718045451319,-500.0,0.0002,2]
[328991771,1718045451329,-500.0,0.0002,2]
[328991772,1718045451340,-500.0,0.0002,2]
[328991773,1718045451350,-500.0,0.0002,2]
[328991774,1718045451360,-500.0,0.0002,2]
[328991775,1718045451371,-500.0,0.0002,2]
[328991776,1718045451381,-483.34614025,0.0002,2]
[328991777,1718045451390,-500.0,0.0002,2]
[328991778,1718045451400,-500.0,0.0002,2]
[328991779,1718045451411,-500.0,0.0002,2]
[328991780,1718045451421,-500.0,0.0002,2]
[328991781,1718045451431,-500.0,0.0002,2]
[328991782,1718045451440,-500.0,0.0002,2]
[328991783,1718045451451,-500.0,0.0002,2]
[328991784,1718045451461,-828.78,0.0002,2]
[328991785,1718045451471,-536.28,0.0002,2]
[328991786,1718045451481,-2628.33,0.0002,2]
[328991787,1718045451492,-500.0,0.0002,2]
[328991788,1718045451501,-500.0,0.0002,2]
[328991789,1718045451511,-1042.57,0.0002,2]
[328991790,1718045451521,-261.3701492,0.0002,2]
[328991791,1718045451531,-500.0,0.0002,2]
[328991792,1718045451541,-500.0,0.0002,2]
[328991793,1718045451551,-500.0,0.0002,2]
[328991794,1718045451562,-500.0,0.0002,2]
[328991795,1718045451571,-1048.97,0.0002,2]
[328991796,1718045451581,-500.0,0.0002,2]
[328991797,1718045451592,-500.0,0.0002,2]
[328991798,1718045451602,-500.0,0.0002,2]
[328991799,1718045451612,-500.0,0.0002,2]
[328991800,1718045451622,-500.0,0.0002,2]
[328991801,1718045451633,-500.0,0.0002,2]
[328991802,1718045451643,-876.45,0.0002,2]
[328991803,1718045451654,-500.0,0.0002,2]
[328991804,1718045451664,-644.82,0.0002,2]
[328991805,1718045451675,-500.0,0.0002,2]
[328991806,1718045451685,-500.0,0.0002,2]
[328991807,1718045451695,-526.51,0.0002,2]
[328991808,1718045451705,-2385.2,0.0002,2]
[328991809,1718045451715,-500.0,0.0002,2]
[328991810,1718045451726,-153.0,0.00020164,2]
[328991811,1718045451736,-672.01,0.00020272,2]
[328991812,1718045451746,-500.0,0.00020273,2]
[328991813,1718045451756,-500.0,0.00020273,2]
[328991814,1718045451767,-500.0,0.00020273,2]
[328991815,1718045451777,-500.0,0.00020273,2]
[328991816,1718045451787,-500.0,0.00020273,2]
[328991817,1718045451799,-500.0,0.00020273,2]
[328991818,1718045451809,-195.35795499,0.00020273,2]
[328991819,1718045451819,-500.0,0.00020273,2]
[328991820,1718045451829,-500.0,0.00020273,2]
[328991821,1718045451839,-500.0,0.00020273,2]
[328991822,1718045451849,-500.0,0.00020273,2]
[328991823,1718045451859,-500.0,0.00020273,2]
[328991824,1718045451869,-500.0,0.00020273,2]
[328991825,1718045451879,-500.0,0.00020273,2]
[328991826,1718045451890,-500.0,0.00020273,2]
[328991827,1718045451900,-500.0,0.00020273,4]
[328991828,1718045451911,-500.0,0.00020273,2]
[328991829,1718045451921,-500.0,0.00020273,2]
[328991830,1718045451931,-500.0,0.00020273,2]
[328991831,1718045451940,-500.0,0.00020273,2]
[328991832,1718045451951,-500.0,0.00020273,2]
[328991833,1718045451961,-500.0,0.00020273,2]
[328991834,1718045451971,-500.0,0.00020273,2]
[328991835,1718045451982,-500.0,0.00020273,2]
[328991836,1718045451992,-500.0,0.00020273,2]
[328991837,1718045452002,-500.0,0.00020273,2]
[328991838,1718045452012,-500.0,0.00020273,2]
[328991839,1718045452022,-500.0,0.00020273,2]
[328991840,1718045452031,-500.0,0.00020273,2]
[328991841,1718045452042,-500.0,0.00020273,2]
[328991842,1718045452053,-500.0,0.00020273,2]
[328991843,1718045452064,-500.0,0.00020273,2]
[328991844,1718045452074,-500.0,0.00020273,2]
[328991845,1718045452084,-500.0,0.00020273,2]
[328991846,1718045452095,-500.0,0.00020273,2]
[328991847,1718045452105,-534.44,0.00020273,2]
[328991848,1718045452115,-500.0,0.00020273,2]
[328991849,1718045452125,-500.0,0.00020273,2]
[328991850,1718045452136,-500.0,0.00020273,2]
[328991851,1718045452146,-929.55,0.00020273,2]
[328991852,1718045452159,-500.0,0.00020273,2]
[328991853,1718045452170,-500.0,0.00020273,2]
[328991854,1718045452180,-500.0,0.00020273,2]
[328991855,1718045452191,-500.0,0.00020273,2]
[328991856,1718045452202,-500.0,0.00020273,2]
[328991857,1718045452212,-500.0,0.00020273,2]
[328991858,1718045452221,-556.97,0.00020273,2]
[328991859,1718045452232,-1879.25,0.00020273,2]
[328991860,1718045452242,-382.12203268,0.00020273,2]
[328991861,1718045452251,-406.56,0.00020273,2]
[328991862,1718045452260,-500.0,0.00020273,2]
[328991863,1718045452270,-6299.95,0.00020273,2]
[328991864,1718045452279,-500.0,0.00020273,2]
[328991865,1718045452293,-500.0,0.00020273,2]
[328991866,1718045452303,-505.92399926,0.00020273,2]
[328991867,1718045452312,-1604.21,0.00020273,2]
[328991868,1718045452322,-1169.0,0.00020273,2]
[328991869,1718045452332,-500.0,0.00020273,2]
[328991870,1718045452342,-500.0,0.00020273,2]
[328991871,1718045452351,-775.44,0.00020273,2]
[328991872,1718045452363,-500.0,0.00020273,2]
[328991873,1718045452373,-500.0,0.00020273,2]
[328991874,1718045452382,-500.0,0.00020273,2]
[328991875,1718045452392,-500.0,0.00020273,2]
[328991876,1718045452401,-500.0,0.00020273,2]
[328991877,1718045452411,-364.86641781,0.00020273,2]
[328991878,1718045452420,-500.0,0.00020273,2]
[328991879,1718045452430,-500.0,0.00020273,2]
[328991880,1718045452440,-500.0,0.00020273,2]
[328991881,1718045452450,-500.0,0.00020273,2]
[328991882,1718045452460,-500.0,0.00020273,2]
[328991883,1718045452469,-500.0,0.00020273,2]
[328991884,1718045452479,-828.78,0.00020273,2]
[328991885,1718045452488,-536.28,0.00020273,2]
[328991886,1718045452498,-2628.33,0.00020273,2]
[328991887,1718045452507,-500.0,0.00020273,2]
[328991888,1718045452517,-500.0,0.00020273,2]
[328991889,1718045452526,-1042.57,0.00020273,2]
[328991890,1718045452535,-500.0,0.00020273,2]
[328991891,1718045452545,-500.0,0.00020273,2]
[328991892,1718045452554,-500.0,0.00020273,2]
[328991893,1718045452564,-1048.97,0.00020273,2]
[328991894,1718045452574,-500.0,0.00020273,2]
[328991895,1718045452584,-500.0,0.00020273,2]
[328991896,1718045452594,-500.0,0.00020273,2]
[328991897,1718045452604,-500.0,0.00020273,2]
[328991898,1718045452614,-500.0,0.00020273,2]
[328991899,1718045452624,-500.0,0.00020273,2]
[328991900,1718045452634,-876.45,0.00020273,2]
[328991901,1718045452643,-644.82,0.00020273,2]
[328991902,1718045452654,-500.0,0.00020273,2]
[328991903,1718045452664,-233.91974832,0.00020273,2]
[328991904,1718045452674,-526.51,0.00020273,2]
[328991905,1718045452684,-2385.2,0.00020273,2]
[328991906,1718045452694,-500.0,0.00020273,2]
[328991907,1718045452704,-505.56482555,0.00020414,2]
[328991908,1718045452714,-160.0,0.0002045,2]
[328991909,1718045452724,-431.66,0.00020538,3]
[328991910,1718045452735,-672.01,0.00020546,2]
[328991911,1718045452745,-597.14511368,0.00020547,2]
[328991912,1718045452755,-500.0,0.00020547,2]
[328991913,1718045452765,-500.0,0.00020547,2]
[328991914,1718045452775,-500.0,0.00020547,2]
[328991915,1718045452785,-630.92,0.00020547,2]
[328991916,1718045452795,-335.71536797,0.00020547,2]
[328991917,1718045452805,-500.0,0.00020547,2]
[328991918,1718045452815,-500.0,0.00020547,2]
[328991919,1718045452825,-500.0,0.00020547,2]
[328991920,1718045452836,-500.0,0.00020547,2]
[328991921,1718045452845,-500.0,0.00020547,2]
[328991922,1718045452855,-500.0,0.00020547,2]
[328991923,1718045452865,-500.0,0.00020547,2]
[328991924,1718045452875,-500.0,0.00020547,2]
[328991925,1718045452886,-500.0,0.00020547,4]
[328991926,1718045452896,-500.0,0.00020547,2]
[328991927,1718045452908,-500.0,0.00020547,2]
[328991928,1718045452917,-500.0,0.00020547,2]
[328991929,1718045452927,-500.0,0.00020547,2]
[328991930,1718045452938,-352.72339032,0.00020547,2]
[328991931,1718045452948,-500.0,0.00020547,2]
[328991932,1718045452958,-500.0,0.00020547,2]
[328991933,1718045452968,-500.0,0.00020547,2]
[328991934,1718045452978,-500.0,0.00020547,2]
[328991935,1718045452988,-500.0,0.00020547,2]
[328991936,1718045452998,-500.0,0.00020547,2]
[328991937,1718045453008,-500.0,0.00020547,2]
[328991938,1718045453018,-500.0,0.00020547,2]
[328991939,1718045453029,-500.0,0.00020547,2]
[328991940,1718045453039,-500.0,0.00020547,2]
[328991941,1718045453049,-500.0,0.00020547,2]
[328991942,1718045453059,-500.0,0.00020547,2]
[328991943,1718045453070,-500.0,0.00020547,2]
[328991944,1718045453080,-500.0,0.00020547,2]
[328991945,1718045453089,-534.44,0.00020547,2]
[328991946,1718045453099,-504.43232428,0.00020547,2]
[328991947,1718045453109,-500.0,0.00020547,2]
[328991948,1718045453119,-500.0,0.00020547,2]
[328991949,1718045453129,-929.55,0.00020547,2]
[328991950,1718045453139,-500.0,0.00020547,2]
[328991951,1718045453149,-500.0,0.00020547,2]
[328991952,1718045453161,-500.0,0.00020547,2]
[328991953,1718045453170,-500.0,0.00020547,2]
[328991954,1718045453181,-500.0,0.00020547,2]
[328991955,1718045453191,-500.0,0.00020547,2]
[328991956,1718045453201,-1879.25,0.00020547,2]
[328991957,1718045453211,-556.97,0.00020547,2]
[328991958,1718045453221,-500.0,0.00020547,2]
[328991959,1718045453231,-6299.95,0.00020547,2]
[328991960,1718045453241,-500.0,0.00020547,2]
[328991961,1718045453251,-500.0,0.00020547,2]
[328991962,1718045453261,-1604.21,0.00020547,2]
[328991963,1718045453271,-1169.0,0.00020547,2]
[328991964,1718045453281,-500.0,0.00020547,2]
[328991965,1718045453296,-500.0,0.00020547,2]
[328991966,1718045453305,-775.44,0.00020547,2]
[328991967,1718045453315,-500.0,0.00020547,2]
[328991968,1718045453326,-500.0,0.00020547,2]
[328991969,1718045453338,-500.0,0.00020547,2]
[328991970,1718045453348,-500.0,0.00020547,2]
[328991971,1718045453359,-500.0,0.00020547,2]
[328991972,1718045453371,-500.0,0.00020547,2]
[328991973,1718045453382,-500.0,0.00020547,2]
[328991974,1718045453392,-500.0,0.00020547,2]
[328991975,1718045453404,-500.0,0.00020547,2]
[328991976,1718045453415,-500.0,0.00020547,2]
[328991977,1718045453425,-500.0,0.00020547,2]
[328991978,1718045453436,-828.78,0.00020547,2]
[328991979,1718045453446,-536.28,0.00020547,2]
[328991980,1718045453457,-2628.33,0.00020547,2]
[328991981,1718045453467,-500.0,0.00020547,2]
[328991982,1718045453479,-500.0,0.00020547,2]
[328991983,1718045453489,-1042.57,0.00020547,2]
[328991984,1718045453501,-443.12862648,0.00020547,2]
[328991985,1718045453511,-500.0,0.00020547,2]
[328991986,1718045453522,-500.0,0.00020547,2]
[328991987,1718045453532,-1048.97,0.00020547,2]
[328991988,1718045453542,-500.0,0.00020547,2]
[328991989,1718045453551,-500.0,0.00020547,2]
[328991990,1718045453561,-500.0,0.00020547,2]
[328991991,1718045453570,-500.0,0.00020547,2]
[328991992,1718045453580,-500.0,0.00020547,2]
[328991993,1718045453590,-500.0,0.00020547,2]
[328991994,1718045453601,-876.45,0.00020547,2]
[328991995,1718045453611,-644.82,0.00020547,2]
[328991996,1718045453620,-506.88,0.00020547,2]
[328991997,1718045453630,-526.51,0.00020547,2]
[328991998,1718045453640,-2385.2,0.00020547,2]
[328991999,1718045453764,-500.0,0.00020547,2]
[328992000,1718045453775,-217.3,0.00020745,5]
[328992001,1718045453786,-672.01,0.0002082,2]
[328992002,1718045453799,-500.0,0.00020821,2]
[328992003,1718045453811,-500.0,0.00020821,2]
[328992004,1718045453821,-626.0,0.00020821,2]
[328992005,1718045453832,-500.0,0.00020821,2]
[328992006,1718045453843,-500.0,0.00020821,2]
[328992007,1718045453854,-332.08217963,0.00020821,2]
[328992008,1718045453864,-500.0,0.00020821,2]
[328992009,1718045453876,-500.0,0.00020821,2]
[328992010,1718045453887,-500.0,0.00020821,2]
[328992011,1718045453898,-169.13838736,0.00020821,2]
[328992012,1718045453910,-500.0,0.00020821,2]
[328992013,1718045453920,-500.0,0.00020821,4]
[328992014,1718045453931,-343.71,0.00020821,2]
[328992015,1718045453941,-500.0,0.00020821,2]
[328992016,1718045453953,-500.0,0.00020821,2]
[328992017,1718045453964,-500.0,0.00020821,2]
[328992018,1718045453974,-500.0,0.00020821,2]
[328992019,1718045453985,-393.14439212,0.00020821,2]
[328992020,1718045453995,-500.0,0.00020821,2]
[328992021,1718045454005,-366.38058271,0.00020821,2]
[328992022,1718045454016,-500.0,0.00020821,2]
[328992023,1718045454027,-500.0,0.00020821,2]
[328992024,1718045454038,-406.59770439,0.00020821,2]
[328992025,1718045454049,-500.0,0.00020821,2]
[328992026,1718045454060,-500.0,0.00020821,2]
[328992027,1718045454071,-556.85168651,0.00020821,2]
[328992028,1718045454082,-500.0,0.00020821,2]
[328992029,1718045454092,-500.0,0.00020821,2]
[328992030,1718045454102,-500.0,0.00020821,2]
[328992031,1718045454113,-500.0,0.00020821,2]
[328992032,1718045454124,-534.44,0.00020821,2]
[328992033,1718045454134,-500.0,0.00020821,2]
[328992034,1718045454145,-929.55,0.00020821,2]
[328992035,1718045454157,-500.0,0.00020821,2]
[328992036,1718045454167,-500.0,0.00020821,2]
[328992037,1718045454179,-500.0,0.00020821,2]
[328992038,1718045454190,-500.0,0.00020821,2]
[328992039,1718045454201,-500.0,0.00020821,2]
[328992040,1718045454212,-500.0,0.00020821,2]
[328992041,1718045454223,-556.97,0.00020821,2]
[328992042,1718045454235,-1879.25,0.00020821,2]
[328992043,1718045454247,-500.0,0.00020821,2]
[328992044,1718045454257,-6299.95,0.00020821,2]
[328992045,1718045454268,-500.0,0.00020821,2]
[328992046,1718045454280,-500.0,0.00020821,2]
[328992047,1718045454293,-1604.21,0.00020821,2]
[328992048,1718045454304,-1169.0,0.00020821,2]
[328992049,1718045454315,-500.0,0.00020821,2]
[328992050,1718045454327,-500.0,0.00020821,2]
[328992051,1718045454338,-775.44,0.00020821,2]
[328992052,1718045454348,-405.46648514,0.00020821,2]
[328992053,1718045454360,-500.0,0.00020821,2]
[328992054,1718045454373,-500.0,0.00020821,2]
[328992055,1718045454384,-500.0,0.00020821,2]
[328992056,1718045454395,-500.0,0.00020821,2]
[328992057,1718045454406,-500.0,0.00020821,2]
[328992058,1718045454417,-346.28,0.00020821,2]
[328992059,1718045454428,-400.82160122,0.00020821,2]
[328992060,1718045454439,-541.04263812,0.00020821,2]
[328992061,1718045454449,-500.0,0.00020821,2]
[328992062,1718045454460,-500.0,0.00020821,2]
[328992063,1718045454470,-828.78,0.00020821,2]
[328992064,1718045454481,-536.28,0.00020821,2]
[328992065,1718045454492,-2628.33,0.00020821,2]
[328992066,1718045454502,-500.0,0.00020821,2]
[328992067,1718045454513,-500.0,0.00020821,2]
[328992068,1718045454524,-1042.57,0.00020821,2]
[328992069,1718045454535,-500.0,0.00020821,2]
[328992070,1718045454547,-500.0,0.00020821,2]
[328992071,1718045454558,-1048.97,0.00020821,2]
[328992072,1718045454569,-500.0,0.00020821,2]
[328992073,1718045454580,-508.43687794,0.00020821,2]
[328992074,1718045454590,-500.0,0.00020821,2]
[328992075,1718045454600,-500.0,0.00020821,2]
[328992076,1718045454611,-500.0,0.00020821,2]
[328992077,1718045454622,-876.45,0.00020821,2]
[328992078,1718045454632,-644.82,0.00020821,2]
[328992079,1718045454643,-526.51,0.00020821,2]
[328992080,1718045454654,-2385.2,0.00020821,2]
[328992081,1718045454664,-500.0,0.00020821,2]
[328992082,1718045454674,-6555.47693449,0.00021,2]
[328992083,1718045454685,-4271.9243,0.00021,5]
[328992084,1718045454695,-1000.0,0.00021,9]
[328992085,1718045454705,-672.01,0.00021094,2]
[328992086,1718045454716,-500.0,0.00021095,2]
[328992087,1718045454726,-500.0,0.00021095,2]
[328992088,1718045454737,-500.0,0.00021095,2]
[328992089,1718045454747,-500.0,0.00021095,2]
[328992090,1718045454757,-500.0,0.00021095,4]
[328992091,1718045454769,-500.0,0.00021095,2]
[328992092,1718045454779,-500.0,0.00021095,2]
[328992093,1718045454789,-518.64553828,0.00021095,2]
[328992094,1718045454800,-587.64,0.00021095,2]
[328992095,1718045454810,-500.0,0.00021095,2]
[328992096,1718045454820,-500.0,0.00021095,2]
[328992097,1718045454830,-500.0,0.00021095,2]
[328992098,1718045454840,-500.0,0.00021095,2]
[328992099,1718045454850,-500.0,0.00021095,2]
[328992100,1718045454860,-185.54679252,0.00021095,2]
[328992101,1718045454870,-500.0,0.00021095,2]
[328992102,1718045454879,-534.44,0.00021095,2]
[328992103,1718045454889,-500.0,0.00021095,2]
[328992104,1718045454900,-929.55,0.00021095,2]
[328992105,1718045454911,-500.0,0.00021095,2]
[328992106,1718045454920,-500.0,0.00021095,2]
[328992107,1718045454930,-500.0,0.00021095,2]
[328992108,1718045454939,-500.0,0.00021095,2]
[328992109,1718045454949,-500.0,0.00021095,2]
[328992110,1718045454959,-556.97,0.00021095,2]
[328992111,1718045454969,-1879.25,0.00021095,2]
[328992112,1718045454979,-500.0,0.00021095,2]
[328992113,1718045454989,-6299.95,0.00021095,2]
[328992114,1718045454999,-500.0,0.00021095,2]
[328992115,1718045455009,-500.0,0.00021095,2]
[328992116,1718045455019,-1604.21,0.00021095,2]
[328992117,1718045455029,-1169.0,0.00021095,2]
[328992118,1718045455040,-500.0,0.00021095,2]
[328992119,1718045455050,-775.44,0.00021095,2]
[328992120,1718045455061,-500.0,0.00021095,2]
[328992121,1718045455071,-183.3169378,0.00021095,2]
[328992122,1718045455081,-500.0,0.00021095,2]
[328992123,1718045455091,-500.0,0.00021095,2]
[328992124,1718045455101,-500.0,0.00021095,2]